[Event "Early-Titled-Tuesday-Blitz-October-10-2023"]
[Site "Chess.com"]
[Date "2023.10.10"]
[Round "4"]
[White "motivated_bishop"]
[Black "rikchessmx"]
[Result "1/2-1/2"]
[WhiteElo "2469"]
[BlackElo "2295"]
[TimeControl "180+1"]
[EndTime "8:38:46 PDT"]
[Termination "Game drawn by repetition"]

1. e4 {[%clk 0:03:00.9]} 1... c5 {[%clk 0:02:59.5]} 2. Nf3 {[%clk 0:03:01]} 2...
e6 {[%clk 0:03:00.4]} 3. d4 {[%clk 0:03:01.1]} 3... cxd4 {[%clk 0:03:01.3]} 4.
Nxd4 {[%clk 0:03:01.7]} 4... a6 {[%clk 0:03:01.9]} 5. c4 {[%clk 0:02:58.1]} 5...
Qc7 {[%clk 0:03:02.2]} 6. Nc3 {[%clk 0:02:58.2]} 6... Nf6 {[%clk 0:03:02.6]} 7.
Be3 {[%clk 0:02:58]} 7... Nc6 {[%clk 0:02:59.1]} 8. Be2 {[%clk 0:02:58.3]} 8...
Bb4 {[%clk 0:02:56.9]} 9. f3 {[%clk 0:02:56]} 9... d5 {[%clk 0:02:52.3]} 10.
cxd5 {[%clk 0:02:52.7]} 10... exd5 {[%clk 0:02:51.2]} 11. O-O {[%clk 0:02:21]}
11... Bxc3 {[%clk 0:02:40.1]} 12. bxc3 {[%clk 0:02:21.1]} 12... dxe4 {[%clk
0:02:40.1]} 13. fxe4 {[%clk 0:02:15]} 13... O-O {[%clk 0:02:27.5]} 14. Rxf6
{[%clk 0:02:08.8]} 14... gxf6 {[%clk 0:02:26.9]} 15. Bh6 {[%clk 0:01:58.8]}
15... Re8 {[%clk 0:02:21.1]} 16. Qf1 {[%clk 0:01:06.7]} 16... Qe5 {[%clk
0:02:14.6]} 17. Nf3 {[%clk 0:01:03.9]} 17... Qxe4 {[%clk 0:02:06.8]} 18. Bd3
{[%clk 0:00:57.7]} 18... Qg4 {[%clk 0:02:07.1]} 19. h3 {[%clk 0:00:36.2]} 19...
Qg3 {[%clk 0:02:06.6]} 20. Kh1 {[%clk 0:00:25.6]} 20... Be6 {[%clk 0:01:56.8]}
21. Nd4 {[%clk 0:00:21.7]} 21... Nxd4 {[%clk 0:01:46.7]} 22. cxd4 {[%clk
0:00:21.7]} 22... Bd5 {[%clk 0:01:43]} 23. Bf4 {[%clk 0:00:12.1]} 23... Qxh3+
{[%clk 0:01:35.7]} 24. Kg1 {[%clk 0:00:12.5]} 24... Qg4 {[%clk 0:01:34.4]} 25.
Qf2 {[%clk 0:00:10.6]} 25... Re6 {[%clk 0:01:29.5]} 26. Bd2 {[%clk 0:00:09.6]}
26... Rae8 {[%clk 0:01:26.3]} 27. Bf5 {[%clk 0:00:09.6]} 27... Qg7 {[%clk
0:01:17.2]} 28. Bxe6 {[%clk 0:00:09.2]} 28... fxe6 {[%clk 0:01:17.7]} 29. Rf1
{[%clk 0:00:07.4]} 29... f5 {[%clk 0:01:17.7]} 30. Bf4 {[%clk 0:00:06.3]} 30...
Qg6 {[%clk 0:01:12.4]} 31. Rc1 {[%clk 0:00:05.3]} 31... Bc6 {[%clk 0:01:10.9]}
32. Be5 {[%clk 0:00:05]} 32... Kf7 {[%clk 0:01:09.5]} 33. Rc3 {[%clk 0:00:04.2]}
33... Rg8 {[%clk 0:01:05.7]} 34. Rg3 {[%clk 0:00:01.6]} 34... Qh5 {[%clk
0:01:05.5]} 35. Rxg8 {[%clk 0:00:01.7]} 35... Kxg8 {[%clk 0:01:05.4]} 36. Qg3+
{[%clk 0:00:02]} 36... Qg6 {[%clk 0:01:05.5]} 37. Qxg6+ {[%clk 0:00:01.6]} 37...
hxg6 {[%clk 0:01:05.5]} 38. Kf2 {[%clk 0:00:02.5]} 38... g5 {[%clk 0:01:05.7]}
39. Bf6 {[%clk 0:00:02.6]} 39... g4 {[%clk 0:01:05.1]} 40. g3 {[%clk 0:00:03.3]}
40... Kf7 {[%clk 0:01:04.7]} 41. Be5 {[%clk 0:00:03.8]} 41... Ke7 {[%clk
0:01:04.6]} 42. Ke3 {[%clk 0:00:04.7]} 42... Bd5 {[%clk 0:01:04.3]} 43. a3
{[%clk 0:00:04.2]} 43... Kd7 {[%clk 0:01:04.8]} 44. Kd3 {[%clk 0:00:04.3]} 44...
Kc6 {[%clk 0:01:05.7]} 45. Kc3 {[%clk 0:00:04.5]} 45... Kb5 {[%clk 0:01:06.3]}
46. Bd6 {[%clk 0:00:04.9]} 46... Ka4 {[%clk 0:01:04.8]} 47. Kb2 {[%clk
0:00:04.3]} 47... a5 {[%clk 0:01:04.2]} 48. Kc3 {[%clk 0:00:04.5]} 48... b5
{[%clk 0:01:03.7]} 49. Kb2 {[%clk 0:00:04.3]} 49... b4 {[%clk 0:01:03.3]} 50.
axb4 {[%clk 0:00:04.8]} 50... axb4 {[%clk 0:01:03.4]} 51. Be7 {[%clk 0:00:04.4]}
51... Kb5 {[%clk 0:01:03.5]} 52. Bf8 {[%clk 0:00:03.3]} 52... Kc4 {[%clk
0:01:03.6]} 53. Bg7 {[%clk 0:00:02.3]} 53... b3 {[%clk 0:01:02.5]} 54. Be5
{[%clk 0:00:02.2]} 54... Kd3 {[%clk 0:01:02.6]} 55. Bf6 {[%clk 0:00:01.9]} 55...
Ke4 {[%clk 0:01:01.8]} 56. Be5 {[%clk 0:00:01.7]} 56... Bc4 {[%clk 0:01:01.7]}
57. Kc3 {[%clk 0:00:01.8]} 57... Kd5 {[%clk 0:00:56.9]} 58. Bf4 {[%clk
0:00:02.1]} 58... Ke4 {[%clk 0:00:53.6]} 59. Be5 {[%clk 0:00:02.5]} 59... Kf3
{[%clk 0:00:53.4]} 60. Bf4 {[%clk 0:00:02.9]} 60... Ke2 {[%clk 0:00:53.1]} 61.
Be5 {[%clk 0:00:03.3]} 61... Kd1 {[%clk 0:00:53.3]} 62. Kb2 {[%clk 0:00:03.9]}
62... Bd5 {[%clk 0:00:52.7]} 63. Bf4 {[%clk 0:00:04.3]} 63... Ke2 {[%clk
0:00:52]} 64. Be5 {[%clk 0:00:04.7]} 64... Kd3 {[%clk 0:00:52.3]} 65. Bf6 {[%clk
0:00:02]} 65... Ke3 {[%clk 0:00:52.6]} 66. Be5 {[%clk 0:00:02]} 66... Ke4 {[%clk
0:00:52.1]} 67. Kc3 {[%clk 0:00:02]} 67... Bc4 {[%clk 0:00:51.4]} 68. Kb2 {[%clk
0:00:01.5]} 68... Kd3 {[%clk 0:00:51.6]} 69. Bf6 {[%clk 0:00:01.4]} 69... Kd2
{[%clk 0:00:51.8]} 70. Be5 {[%clk 0:00:02]} 70... Bd5 {[%clk 0:00:52]} 71. Bf6
{[%clk 0:00:02.5]} 71... Kd3 {[%clk 0:00:52.4]} 72. Be5 {[%clk 0:00:02.9]} 72...
Ke2 {[%clk 0:00:52.2]} 73. Bf4 {[%clk 0:00:03.2]} 73... Kf3 {[%clk 0:00:51.7]}
74. Be5 {[%clk 0:00:03.6]} 74... Kg2 {[%clk 0:00:51.8]} 75. Kc3 {[%clk
0:00:04.1]} 75... Kf3 {[%clk 0:00:51.2]} 76. Kb2 {[%clk 0:00:04.6]} 76... Ke4
{[%clk 0:00:52.1]} 77. Kc3 {[%clk 0:00:04.9]} 77... Ke3 {[%clk 0:00:51.2]} 78.
Kb2 {[%clk 0:00:05.4]} 78... Kd3 {[%clk 0:00:51.5]} 1/2-1/2

[Event "Early-Titled-Tuesday-Blitz-October-10-2023"]
[Site "Chess.com"]
[Date "2023.10.10"]
[Round "4"]
[White "meoluoi91"]
[Black "Anton_Demchenko"]
[Result "0-1"]
[WhiteElo "2607"]
[BlackElo "3004"]
[TimeControl "180+1"]
[EndTime "8:38:47 PDT"]
[Termination "Anton_Demchenko won on time"]

1. Nf3 {[%clk 0:03:00.9]} 1... Nf6 {[%clk 0:02:58.9]} 2. g3 {[%clk 0:02:59.4]}
2... b5 {[%clk 0:02:59.1]} 3. Bg2 {[%clk 0:02:57.7]} 3... Bb7 {[%clk 0:02:59.3]}
4. O-O {[%clk 0:02:57.7]} 4... e6 {[%clk 0:02:59.3]} 5. d3 {[%clk 0:02:57.8]}
5... d6 {[%clk 0:02:53.9]} 6. e4 {[%clk 0:02:57.2]} 6... c5 {[%clk 0:02:49.1]}
7. c3 {[%clk 0:02:55.5]} 7... Be7 {[%clk 0:02:44.5]} 8. Re1 {[%clk 0:02:55.6]}
8... O-O {[%clk 0:02:43.8]} 9. Nbd2 {[%clk 0:02:55.7]} 9... Nc6 {[%clk
0:02:43.1]} 10. Nf1 {[%clk 0:02:48]} 10... b4 {[%clk 0:02:38.3]} 11. c4 {[%clk
0:02:46.6]} 11... Nd7 {[%clk 0:02:36.3]} 12. g4 {[%clk 0:02:36.2]} 12... Nde5
{[%clk 0:02:34.3]} 13. h3 {[%clk 0:02:32.2]} 13... Nxf3+ {[%clk 0:02:31.6]} 14.
Bxf3 {[%clk 0:02:31.2]} 14... Bg5 {[%clk 0:02:32.3]} 15. Bg2 {[%clk 0:02:25.8]}
15... Bxc1 {[%clk 0:02:31.7]} 16. Qxc1 {[%clk 0:02:25.7]} 16... Nd4 {[%clk
0:02:11.5]} 17. Ne3 {[%clk 0:02:25.1]} 17... h5 {[%clk 0:01:45.9]} 18. Qd2
{[%clk 0:02:19.5]} 18... Qg5 {[%clk 0:01:38.3]} 19. Rad1 {[%clk 0:02:11.8]}
19... hxg4 {[%clk 0:01:37.1]} 20. hxg4 {[%clk 0:02:08.9]} 20... g6 {[%clk
0:01:31.6]} 21. Rf1 {[%clk 0:01:52.5]} 21... e5 {[%clk 0:01:30.3]} 22. f3 {[%clk
0:01:50.5]} 22... f6 {[%clk 0:01:18.2]} 23. Nc2 {[%clk 0:01:22.2]} 23... Ne6
{[%clk 0:01:16]} 24. Qxg5 {[%clk 0:01:02.5]} 24... fxg5 {[%clk 0:01:16.9]} 25.
Kf2 {[%clk 0:01:02.5]} 25... Kg7 {[%clk 0:01:10.9]} 26. Rh1 {[%clk 0:01:00.6]}
26... Nf4 {[%clk 0:01:10.1]} 27. Bf1 {[%clk 0:00:56.3]} 27... a6 {[%clk
0:01:09.9]} 28. Be2 {[%clk 0:00:56]} 28... a5 {[%clk 0:01:10]} 29. Ne3 {[%clk
0:00:46.4]} 29... Rh8 {[%clk 0:00:56.9]} 30. Ra1 {[%clk 0:00:31]} 30... Bc6
{[%clk 0:00:54.7]} 31. Rxh8 {[%clk 0:00:28.1]} 31... Rxh8 {[%clk 0:00:53.9]} 32.
Nf1 {[%clk 0:00:29]} 32... Ne6 {[%clk 0:00:51.2]} 33. a3 {[%clk 0:00:23.5]}
33... bxa3 {[%clk 0:00:48.4]} 34. Rxa3 {[%clk 0:00:22.9]} 34... Rb8 {[%clk
0:00:47.8]} 35. Rxa5 {[%clk 0:00:19.6]} 35... Rxb2 {[%clk 0:00:47.4]} 36. Ra6
{[%clk 0:00:19.3]} 36... Nd4 {[%clk 0:00:47.5]} 37. Ng3 {[%clk 0:00:19.8]} 37...
Kf6 {[%clk 0:00:42.3]} 38. Ke3 {[%clk 0:00:19.7]} 38... Ke6 {[%clk 0:00:42.3]}
39. Ra7 {[%clk 0:00:17.9]} 39... Bb7 {[%clk 0:00:35.6]} 40. Ra5 {[%clk 0:00:15]}
40... Kd7 {[%clk 0:00:35.5]} 41. Ra7 {[%clk 0:00:14.6]} 41... Kc8 {[%clk
0:00:35.1]} 42. Ra5 {[%clk 0:00:14.3]} 42... Kc7 {[%clk 0:00:35.1]} 43. Bd1
{[%clk 0:00:13]} 43... Rb1 {[%clk 0:00:29.2]} 44. Be2 {[%clk 0:00:12.7]} 44...
Kb6 {[%clk 0:00:28.1]} 45. Ra2 {[%clk 0:00:12.8]} 45... Bc6 {[%clk 0:00:26.9]}
46. Nf1 {[%clk 0:00:12]} 46... Ne6 {[%clk 0:00:18.4]} 47. Nd2 {[%clk 0:00:11.1]}
47... Rb4 {[%clk 0:00:18.7]} 48. Bd1 {[%clk 0:00:10.5]} 48... Nf4 {[%clk
0:00:16.5]} 49. Bc2 {[%clk 0:00:08.9]} 49... Kc7 {[%clk 0:00:15.9]} 50. Bb3
{[%clk 0:00:05.8]} 50... Rb8 {[%clk 0:00:15.5]} 51. Ra1 {[%clk 0:00:05.2]} 51...
Rh8 {[%clk 0:00:15.5]} 52. Ra7+ {[%clk 0:00:03.9]} 52... Kb6 {[%clk 0:00:15.1]}
53. Ra1 {[%clk 0:00:03.1]} 53... Rh2 {[%clk 0:00:15.3]} 0-1

[Event "Early-Titled-Tuesday-Blitz-October-10-2023"]
[Site "Chess.com"]
[Date "2023.10.10"]
[Round "4"]
[White "Wizard_97"]
[Black "Maxterlopez"]
[Result "1-0"]
[WhiteElo "2569"]
[BlackElo "2778"]
[TimeControl "180+1"]
[EndTime "8:38:47 PDT"]
[Termination "Wizard_97 won on time"]

1. e4 {[%clk 0:03:00.9]} 1... e5 {[%clk 0:02:56.7]} 2. Nf3 {[%clk 0:03:01]} 2...
Nc6 {[%clk 0:02:57.3]} 3. Bc4 {[%clk 0:03:01.3]} 3... Bc5 {[%clk 0:02:56.8]} 4.
c3 {[%clk 0:03:01.8]} 4... Nf6 {[%clk 0:02:57.3]} 5. d3 {[%clk 0:03:02.1]} 5...
d6 {[%clk 0:02:57.6]} 6. Nbd2 {[%clk 0:03:02.6]} 6... a6 {[%clk 0:02:58.1]} 7.
Bb3 {[%clk 0:03:02.8]} 7... Ba7 {[%clk 0:02:58.1]} 8. h3 {[%clk 0:03:03.4]} 8...
h6 {[%clk 0:02:58.5]} 9. Nf1 {[%clk 0:03:04.1]} 9... Be6 {[%clk 0:02:58.5]} 10.
Ng3 {[%clk 0:03:04.5]} 10... d5 {[%clk 0:02:55.8]} 11. Qe2 {[%clk 0:03:03.8]}
11... Qd6 {[%clk 0:02:55.6]} 12. O-O {[%clk 0:03:03.3]} 12... O-O-O {[%clk
0:02:55.6]} 13. Be3 {[%clk 0:03:02.9]} 13... d4 {[%clk 0:02:54.7]} 14. Bxe6+
{[%clk 0:03:02.9]} 14... fxe6 {[%clk 0:02:54.4]} 15. cxd4 {[%clk 0:03:03.5]}
15... exd4 {[%clk 0:02:53.8]} 16. Bd2 {[%clk 0:03:03.2]} 16... e5 {[%clk
0:02:48.9]} 17. Rac1 {[%clk 0:03:03.8]} 17... g6 {[%clk 0:02:47.7]} 18. Qd1
{[%clk 0:02:59.8]} 18... Kb8 {[%clk 0:02:38.1]} 19. Qa4 {[%clk 0:03:00.1]} 19...
Nd7 {[%clk 0:02:32.3]} 20. b4 {[%clk 0:02:57.2]} 20... Rdf8 {[%clk 0:02:24]} 21.
b5 {[%clk 0:02:53]} 21... axb5 {[%clk 0:02:21.8]} 22. Qxb5 {[%clk 0:02:53.9]}
22... Rf6 {[%clk 0:01:31.7]} 23. Rb1 {[%clk 0:02:49.4]} 23... Bb6 {[%clk
0:01:27.3]} 24. Rfc1 {[%clk 0:02:44.7]} 24... Qa3 {[%clk 0:01:19.7]} 25. Qc4
{[%clk 0:02:39.2]} 25... Qa6 {[%clk 0:01:11.6]} 26. Qd5 {[%clk 0:02:14.1]} 26...
Kc8 {[%clk 0:01:04.3]} 27. Qb3 {[%clk 0:01:58.5]} 27... Nc5 {[%clk 0:01:02.8]}
28. Qb5 {[%clk 0:01:15.4]} 28... Qxb5 {[%clk 0:00:59.2]} 29. Rxb5 {[%clk
0:01:16.3]} 29... Nxd3 {[%clk 0:01:00.1]} 30. Rc2 {[%clk 0:01:14]} 30... Re6
{[%clk 0:00:52]} 31. a4 {[%clk 0:01:09]} 31... Ba7 {[%clk 0:00:48.1]} 32. a5
{[%clk 0:01:08.1]} 32... Nxf2 {[%clk 0:00:47.6]} 33. Kxf2 {[%clk 0:01:04.1]}
33... d3+ {[%clk 0:00:47.6]} 34. Rcc5 {[%clk 0:01:04.6]} 34... Rf8 {[%clk
0:00:29.6]} 35. Be3 {[%clk 0:00:46.9]} 35... Bxc5 {[%clk 0:00:28.6]} 36. Rxc5
{[%clk 0:00:45.5]} 36... h5 {[%clk 0:00:27.8]} 37. Rd5 {[%clk 0:00:42.6]} 37...
Nb4 {[%clk 0:00:24.8]} 38. Rb5 {[%clk 0:00:40.5]} 38... Nc2 {[%clk 0:00:25.2]}
39. Nf1 {[%clk 0:00:39]} 39... Rc6 {[%clk 0:00:20.8]} 40. Rxe5 {[%clk
0:00:34.9]} 40... Rc4 {[%clk 0:00:19]} 41. Nd2 {[%clk 0:00:32.3]} 41... Ra4
{[%clk 0:00:18.9]} 42. Rd5 {[%clk 0:00:31]} 42... Ra3 {[%clk 0:00:19.5]} 43. Bc5
{[%clk 0:00:28.5]} 43... Rxf3+ {[%clk 0:00:11.5]} 44. Kxf3 {[%clk 0:00:26.9]}
44... Rxa5 {[%clk 0:00:12.4]} 45. Bf2 {[%clk 0:00:15.6]} 45... Ra2 {[%clk
0:00:12.7]} 46. Rxd3 {[%clk 0:00:15.5]} 46... b6 {[%clk 0:00:09.8]} 47. Rc3
{[%clk 0:00:14.6]} 47... c5 {[%clk 0:00:09.6]} 48. Nc4 {[%clk 0:00:14.7]} 48...
Kc7 {[%clk 0:00:09.5]} 49. Ne5 {[%clk 0:00:13.7]} 49... Kb7 {[%clk 0:00:09.6]}
50. Nxg6 {[%clk 0:00:14.1]} 50... Nb4 {[%clk 0:00:07.8]} 51. Nf4 {[%clk
0:00:14]} 51... Nc6 {[%clk 0:00:08.3]} 52. Nxh5 {[%clk 0:00:12.6]} 52... Ne5+
{[%clk 0:00:08.6]} 53. Kg3 {[%clk 0:00:13.1]} 53... b5 {[%clk 0:00:07.6]} 54.
Rxc5 {[%clk 0:00:12.9]} 54... Nd3 {[%clk 0:00:06.7]} 55. Rxb5+ {[%clk
0:00:13.4]} 55... Kc6 {[%clk 0:00:07.4]} 56. Rf5 {[%clk 0:00:14.2]} 1-0

[Event "Early-Titled-Tuesday-Blitz-October-10-2023"]
[Site "Chess.com"]
[Date "2023.10.10"]
[Round "4"]
[White "Elprofessor21"]
[Black "Smiechu"]
[Result "1-0"]
[WhiteElo "2779"]
[BlackElo "2492"]
[TimeControl "180+1"]
[EndTime "8:38:52 PDT"]
[Termination "Elprofessor21 won by resignation"]

1. Nc3 {[%clk 0:03:00.9]} 1... Nf6 {[%clk 0:02:54.7]} 2. Nf3 {[%clk 0:02:59.7]}
2... g6 {[%clk 0:02:50.7]} 3. d4 {[%clk 0:02:59.7]} 3... c5 {[%clk 0:02:45.7]}
4. Bg5 {[%clk 0:02:58.6]} 4... Bg7 {[%clk 0:02:43]} 5. d5 {[%clk 0:02:48.9]}
5... d6 {[%clk 0:02:38.5]} 6. Qd2 {[%clk 0:02:48.3]} 6... b5 {[%clk 0:02:31.4]}
7. Bxf6 {[%clk 0:02:31]} 7... Bxf6 {[%clk 0:02:30.6]} 8. O-O-O {[%clk
0:02:28.2]} 8... Qa5 {[%clk 0:02:18.9]} 9. Kb1 {[%clk 0:02:24.3]} 9... Bxc3
{[%clk 0:02:00.9]} 10. Qxc3 {[%clk 0:02:24.3]} 10... Qxc3 {[%clk 0:02:00.9]} 11.
bxc3 {[%clk 0:02:25.2]} 11... a5 {[%clk 0:01:52.4]} 12. e4 {[%clk 0:02:22.8]}
12... b4 {[%clk 0:01:52.3]} 13. cxb4 {[%clk 0:02:19.9]} 13... axb4 {[%clk
0:01:52.3]} 14. e5 {[%clk 0:02:17.8]} 14... O-O {[%clk 0:01:42.2]} 15. h3 {[%clk
0:01:54.7]} 15... Nd7 {[%clk 0:01:27.8]} 16. Bb5 {[%clk 0:01:30.8]} 16... Nb6
{[%clk 0:01:26.6]} 17. Rhe1 {[%clk 0:01:22.8]} 17... Ba6 {[%clk 0:01:24.7]} 18.
Bc6 {[%clk 0:01:08.9]} 18... Ra7 {[%clk 0:01:18.7]} 19. Nd2 {[%clk 0:01:03.4]}
19... Bb7 {[%clk 0:01:14.7]} 20. exd6 {[%clk 0:00:58.9]} 20... exd6 {[%clk
0:01:14]} 21. Re7 {[%clk 0:00:58.4]} 21... Bxc6 {[%clk 0:00:59.3]} 22. Rxa7
{[%clk 0:00:58.2]} 22... Bxd5 {[%clk 0:00:59.5]} 23. Nb3 {[%clk 0:00:50.7]}
23... Bxg2 {[%clk 0:00:28.2]} 24. Rxd6 {[%clk 0:00:46.1]} 24... Nc4 {[%clk
0:00:28.4]} 25. Rf6 {[%clk 0:00:37.4]} 25... Bxh3 {[%clk 0:00:23.3]} 26. Nxc5
{[%clk 0:00:36.1]} 26... Re8 {[%clk 0:00:20]} 27. Nd3 {[%clk 0:00:31.6]} 27...
Be6 {[%clk 0:00:18]} 28. Kc1 {[%clk 0:00:25]} 28... h5 {[%clk 0:00:16.7]} 29.
Rc7 {[%clk 0:00:24.6]} 29... Na3 {[%clk 0:00:13.3]} 30. Nf4 {[%clk 0:00:23.5]}
30... Nb5 {[%clk 0:00:10.1]} 31. Nxe6 {[%clk 0:00:21.5]} 31... Nxc7 {[%clk
0:00:09.6]} 32. Nxc7 {[%clk 0:00:21.4]} 32... Rc8 {[%clk 0:00:08.9]} 33. Nd5
{[%clk 0:00:21]} 33... h4 {[%clk 0:00:09.3]} 34. Ne7+ {[%clk 0:00:21.1]} 34...
Kg7 {[%clk 0:00:09.2]} 35. Rf4 {[%clk 0:00:20.3]} 35... Re8 {[%clk 0:00:09.2]}
36. Nd5 {[%clk 0:00:18.9]} 36... h3 {[%clk 0:00:08.9]} 37. Rh4 {[%clk
0:00:18.4]} 37... Rh8 {[%clk 0:00:09.2]} 38. Rxh3 {[%clk 0:00:13.1]} 38... Rxh3
{[%clk 0:00:08.5]} 39. Nxb4 {[%clk 0:00:13.9]} 39... Rf3 {[%clk 0:00:07]} 40.
Nd3 {[%clk 0:00:13.9]} 40... Kf6 {[%clk 0:00:05.9]} 41. Kd2 {[%clk 0:00:14]}
41... Ke6 {[%clk 0:00:05.4]} 42. Kc3 {[%clk 0:00:14]} 42... Rf5 {[%clk
0:00:05.9]} 43. Kc4 {[%clk 0:00:13.1]} 43... Kd6 {[%clk 0:00:06.4]} 44. a4
{[%clk 0:00:13.1]} 44... Kc6 {[%clk 0:00:06.3]} 45. Kb4 {[%clk 0:00:13.1]} 45...
Kb6 {[%clk 0:00:06.1]} 46. c4 {[%clk 0:00:11.4]} 46... Rf3 {[%clk 0:00:06.1]}
47. c5+ {[%clk 0:00:11.8]} 47... Kb7 {[%clk 0:00:06.1]} 48. Kc4 {[%clk
0:00:11.8]} 48... f5 {[%clk 0:00:05.5]} 49. a5 {[%clk 0:00:11]} 49... g5 {[%clk
0:00:05.4]} 50. Nb4 {[%clk 0:00:09.7]} 50... Rxf2 {[%clk 0:00:05.4]} 51. a6+
{[%clk 0:00:10.3]} 51... Ka7 {[%clk 0:00:05.2]} 52. Kb5 {[%clk 0:00:11]} 52...
Rb2 {[%clk 0:00:04.6]} 53. c6 {[%clk 0:00:11.2]} 53... Rxb4+ {[%clk 0:00:03.4]}
54. Kxb4 {[%clk 0:00:10.6]} 54... Kxa6 {[%clk 0:00:03.8]} 55. Kc5 {[%clk
0:00:11.3]} 55... g4 {[%clk 0:00:03]} 56. Kd6 {[%clk 0:00:11.4]} 56... g3 {[%clk
0:00:03.5]} 57. c7 {[%clk 0:00:11.9]} 57... g2 {[%clk 0:00:03.9]} 58. c8=Q+
{[%clk 0:00:12.4]} 58... Kb5 {[%clk 0:00:03.7]} 59. Qc5+ {[%clk 0:00:13]} 59...
Ka4 {[%clk 0:00:03.6]} 60. Qf2 {[%clk 0:00:13.4]} 1-0

[Event "Early-Titled-Tuesday-Blitz-October-10-2023"]
[Site "Chess.com"]
[Date "2023.10.10"]
[Round "4"]
[White "GMBenjaminBok"]
[Black "Itk04"]
[Result "1-0"]
[WhiteElo "3019"]
[BlackElo "2758"]
[TimeControl "180+1"]
[EndTime "8:38:54 PDT"]
[Termination "GMBenjaminBok won on time"]

1. d4 {[%clk 0:03:00.9]} 1... Nf6 {[%clk 0:02:57.4]} 2. c4 {[%clk 0:03:01.1]}
2... g6 {[%clk 0:02:58]} 3. g3 {[%clk 0:03:01]} 3... Bg7 {[%clk 0:02:56.7]} 4.
Bg2 {[%clk 0:03:01.3]} 4... d5 {[%clk 0:02:55.7]} 5. Nf3 {[%clk 0:03:00.3]} 5...
O-O {[%clk 0:02:53.7]} 6. O-O {[%clk 0:03:00.3]} 6... c6 {[%clk 0:02:51.3]} 7.
b3 {[%clk 0:02:59.7]} 7... Bf5 {[%clk 0:02:45.3]} 8. Bb2 {[%clk 0:02:58.1]} 8...
a5 {[%clk 0:02:41.6]} 9. Nc3 {[%clk 0:02:57.7]} 9... Ne4 {[%clk 0:02:41]} 10. e3
{[%clk 0:02:58.3]} 10... Nxc3 {[%clk 0:02:39.3]} 11. Bxc3 {[%clk 0:02:59.2]}
11... Be4 {[%clk 0:02:38.8]} 12. Qe2 {[%clk 0:02:59.8]} 12... Nd7 {[%clk
0:02:38.6]} 13. Rfc1 {[%clk 0:02:59.1]} 13... e6 {[%clk 0:02:21.4]} 14. Bf1
{[%clk 0:02:58]} 14... Qe7 {[%clk 0:02:05]} 15. Nd2 {[%clk 0:02:45.3]} 15... g5
{[%clk 0:02:05]} 16. Nxe4 {[%clk 0:02:39.3]} 16... dxe4 {[%clk 0:02:05.9]} 17.
Rab1 {[%clk 0:02:36.5]} 17... c5 {[%clk 0:02:00.8]} 18. a3 {[%clk 0:02:11.5]}
18... Rfd8 {[%clk 0:01:56.3]} 19. b4 {[%clk 0:02:09.5]} 19... axb4 {[%clk
0:01:56.1]} 20. axb4 {[%clk 0:02:10.4]} 20... cxd4 {[%clk 0:01:39.7]} 21. exd4
{[%clk 0:02:08.5]} 21... f5 {[%clk 0:01:40.1]} 22. f3 {[%clk 0:01:50.1]} 22...
exf3 {[%clk 0:01:33.1]} 23. Qxf3 {[%clk 0:01:51]} 23... Ra3 {[%clk 0:01:33.7]}
24. Qf2 {[%clk 0:01:32.7]} 24... Nf6 {[%clk 0:01:21.5]} 25. Qb2 {[%clk 0:01:22]}
25... Rda8 {[%clk 0:00:48.7]} 26. Bg2 {[%clk 0:01:20.5]} 26... Ra2 {[%clk
0:00:44.7]} 27. Ra1 {[%clk 0:01:19.8]} 27... Rxa1 {[%clk 0:00:27.9]} 28. Rxa1
{[%clk 0:01:19]} 28... Rxa1+ {[%clk 0:00:28.8]} 29. Qxa1 {[%clk 0:01:19.8]}
29... Ne4 {[%clk 0:00:27.1]} 30. Bxe4 {[%clk 0:01:07.9]} 30... fxe4 {[%clk
0:00:28]} 31. Qe1 {[%clk 0:00:10.8]} 31... Qc7 {[%clk 0:00:27.4]} 32. Qe2 {[%clk
0:00:11.1]} 32... b5 {[%clk 0:00:27.2]} 33. c5 {[%clk 0:00:09.8]} 33... Qc6
{[%clk 0:00:27.8]} 34. Kf2 {[%clk 0:00:08.1]} 34... h6 {[%clk 0:00:27.4]} 35.
Ke3 {[%clk 0:00:08]} 35... Qd5 {[%clk 0:00:21.5]} 36. Qxb5 {[%clk 0:00:07.6]}
36... Qb3 {[%clk 0:00:21.4]} 37. Kd2 {[%clk 0:00:03.6]} 37... e3+ {[%clk
0:00:20]} 38. Kd3 {[%clk 0:00:03.9]} 38... e2 {[%clk 0:00:15.9]} 39. Qc4 {[%clk
0:00:01.5]} 39... Qd1+ {[%clk 0:00:11.9]} 40. Ke3 {[%clk 0:00:01.9]} 40... e1=Q+
{[%clk 0:00:06.2]} 41. Bxe1 {[%clk 0:00:02.3]} 41... Qxe1+ {[%clk 0:00:07.1]}
42. Kd3 {[%clk 0:00:02.8]} 42... Qf1+ {[%clk 0:00:06.9]} 43. Kc3 {[%clk
0:00:03.2]} 43... Qc1+ {[%clk 0:00:07.5]} 44. Kb3 {[%clk 0:00:03.3]} 44... Qd1+
{[%clk 0:00:07.8]} 45. Kc3 {[%clk 0:00:02.7]} 45... Qc1+ {[%clk 0:00:08.1]} 46.
Kb3 {[%clk 0:00:02.9]} 46... Qb1+ {[%clk 0:00:02.9]} 47. Ka4 {[%clk 0:00:02.9]}
47... Qa1+ {[%clk 0:00:03.3]} 48. Kb5 {[%clk 0:00:03.2]} 48... Qxd4 {[%clk
0:00:03.1]} 49. Qxe6+ {[%clk 0:00:03.1]} 49... Kh8 {[%clk 0:00:03.5]} 50. c6
{[%clk 0:00:03]} 50... Qd3+ {[%clk 0:00:03.1]} 51. Kb6 {[%clk 0:00:02.4]} 51...
Bd4+ {[%clk 0:00:02.2]} 52. Kc7 {[%clk 0:00:01.9]} 52... Qh7+ {[%clk 0:00:02.6]}
53. Qd7 {[%clk 0:00:01.9]} 53... Be5+ {[%clk 0:00:02.6]} 54. Kb7 {[%clk
0:00:02.4]} 54... Qe4 {[%clk 0:00:02.7]} 55. b5 {[%clk 0:00:02]} 55... Qe2
{[%clk 0:00:01.3]} 56. b6 {[%clk 0:00:02.3]} 56... Qe4 {[%clk 0:00:01]} 57. Qc8+
{[%clk 0:00:01.7]} 1-0